bitfinex-derivatives/quotes_ETHF0:USTF0_20251006
["timestamp","ask_amount","ask_price","bid_price","bid_amount"]
[1759756909433,3.74460768,4596.5,4596.3,0.57735256]
[1759756909638,0.7249,4596.3,4596.1,3.78515256]
[1759756909825,0.9826,4596.2,4596.1,3.78515256]
[1759756910030,0.9826,4596.2,4596.1,3.78795716]
[1759756910634,0.7636,4596.2,4596.1,4.23305716]
[1759756910828,1.07141017,4596.5,4596.4,1.14429]
[1759756911029,1.29041017,4596.5,4596.4,1.14429]
[1759756911226,1.29041017,4596.5,4596.2,1.19515256]
[1759756911227,1.1551,4596.3,4596.2,1.19515256]
[1759756911632,0.5449,4596.3,4596.2,1.72165256]
[1759756911830,0.5449,4596.3,4596.2,1.1443]
[1759756912026,0.3334,4596.3,4596.2,1.72165256]
[1759756912233,0.9364,4596.3,4596.2,1.14431]
[1759756912835,1.07892017,4596.5,4596.4,1.14429]
[1759756913036,1.07892017,4596.5,4596.4,1.72740677]
[1759756913432,0.00163017,4596.5,4596.4,1.72740677]
[1759756913637,0.3334,4597.4,4597.3,0.4451]
[1759756913833,1.1553,4597.4,4597.3,4.54336887]
[1759756914037,1.374,4597.4,4597.3,4.23566887]
[1759756914631,0.98494097,4597.4,4597.3,4.54336887]
[1759756915037,0.98494097,4597.4,4597.3,3.9606]
[1759756915447,0.98494097,4597.4,4597.3,3.6529]
[1759756915742,0.76624097,4597.4,4597.3,3.9606]
[1759756917037,0.22134097,4597.4,4597.3,3.9606]
[1759756918045,0.00234097,4597.4,4597.3,3.9606]
[1759756918438,0.22134097,4597.4,4597.3,3.9606]
[1759756920949,0.00234097,4597.4,4597.3,3.9606]
[1759756921542,0.00234097,4597.4,4597.3,3.73827]
[1759756921843,0.33574097,4597.4,4597.3,3.73827]
[1759756922450,0.33574097,4597.4,4597.3,4.51464672]
[1759756924248,0.33574097,4597.4,4597.3,3.73827]
[1759756924548,0.33574097,4597.4,4597.3,4.51458159]
[1759756926954,0.54724097,4597.4,4597.3,4.20688159]
[1759756927147,0.76594097,4597.4,4597.3,4.20688159]
[1759756928652,1.15734097,4597.4,4597.3,4.59829159]
[1759756928852,0.76594097,4597.4,4597.3,4.59829159]
[1759756929049,0.54724097,4597.4,4597.3,4.59829159]
[1759756929249,0.76594097,4597.4,4597.3,4.59829159]
[1759756929749,0.33574097,4597.4,4597.3,4.63849159]
[1759756929958,0.00234097,4597.4,4597.3,8.86218]
[1759756930151,0.00234097,4597.4,4597.3,9.08118]
[1759756930344,0.3334,4598.4,4598.3,0.56013]
[1759756930546,0.4668,4598.5,4598.4,0.0402]
[1759756930752,0.4668,4598.5,4598.4,0.1688]
[1759756931354,0.46859532,4598.5,4598.4,0.1688]
[1759756931555,0.33519532,4598.5,4598.4,0.74998983]
[1759756931857,0.00179532,4598.5,4598.4,5.74998983]
[1759756932055,0.00179532,4598.5,4598.4,5.1688]
[1759756932554,0.00179532,4598.5,4598.4,6.16271978]
[1759756932756,0.00179532,4598.5,4598.4,5.3878]
[1759756935956,0.6858,4599.5,4599.4,0.51983]
[1759756936251,0.6858,4599.5,4599.4,3.72763]
[1759756936457,0.8973,4599.5,4599.4,3.72763]
[1759756936851,0.89982959,4599.5,4599.4,3.72763]
[1759756937057,0.89982959,4599.5,4599.4,3.72986501]
[1759756938452,1.11852959,4599.5,4599.4,3.33863501]
[1759756938659,6.11852959,4599.5,4599.4,0.00223501]
[1759756938857,1.28457,4599.0,4598.9,3.2078]
[1759756939357,1.28457,4599.0,4598.9,3.2725]
[1759756939760,1.28457,4599.0,4598.9,3.27466911]
[1759756940962,0.6781,4599.0,4598.9,3.33996911]
[1759756941359,0.8933,4599.0,4598.9,3.20996911]
[1759756942366,0.8933,4599.0,4598.9,3.27466911]
[1759756943459,1.50357,4599.0,4598.9,3.20996911]
[1759756944165,1.50357,4599.0,4598.9,3.27466911]
[1759756944760,1.50357,4599.0,4598.9,3.20996911]
[1759756947063,9.32593314,4599.0,4598.9,0.00216911]
[1759756947464,0.7701,4598.1,4598.0,0.57951164]
[1759756947763,0.8933,4598.0,4597.9,3.3448]
[1759756948470,0.8933,4598.0,4597.9,3.34687867]
[1759756948663,0.8933,4598.0,4597.9,3.20987867]
[1759756948866,0.8933,4598.0,4597.9,0.00207867]
[1759756949370,8.76453335,4598.0,4597.9,0.00207867]
[1759756952967,1.1615,4597.4,4597.3,3.2078]
[1759756953162,1.3805,4597.4,4597.3,3.2078]
[1759756953363,4.14841383,4597.4,4597.3,3.2078]
[1759756953770,4.14841383,4597.4,4597.3,3.20986893]
[1759756956780,3.53801383,4597.4,4597.3,3.34506893]
[1759756956971,0.3362,4597.8,4597.6,0.1352]
[1759756957171,0.3362,4597.8,4597.7,0.56878]
[1759756957370,0.219,4597.8,4597.7,0.56878]
[1759756957674,0.219,4597.8,4597.7,5.56878]
[1759756958378,0.1232,4598.5,4598.4,0.56872]
[1759756958379,0.3362,4598.5,4598.4,0.56872]
[1759756958580,0.5552,4598.5,4598.4,3.77652]
[1759756961375,0.1232,4599.0,4598.9,0.39128]
[1759756961576,0.5609,4599.0,4598.9,0.52648]
[1759756961776,0.8971,4599.0,4598.9,3.73428]
[1759756961973,0.3362,4599.0,4598.9,3.77648]
[1759756962276,0.6819,4599.0,4598.9,3.77648]
[1759756963881,0.9006,4599.0,4598.9,3.73428]
[1759756964482,0.6819,4599.0,4598.9,3.77648]
[1759756966385,0.5552,4599.0,4598.9,3.77648]
[1759756966983,0.5549,4599.4,4599.3,0.52644]
[1759756967281,0.7739,4599.4,4599.3,0.52644]
[1759756967679,0.3362,4599.4,4599.3,0.56864]
[1759756968080,0.3362,4599.4,4599.3,0.52644]
[1759756968386,0.5621,4599.4,4599.3,0.52644]
[1759756972086,0.3362,4599.4,4599.3,0.52644]
[1759756972384,0.3362,4599.4,4599.3,0.56814]
[1759756972581,3.53743897,4600.0,4599.9,0.55699]
[1759756972779,2.778155,4600.0,4599.9,3.94459]
[1759756972991,2.778155,4600.0,4599.9,46.4684594]
[1759756973374,2.778155,4600.0,4599.9,46.1228594]
[1759756973579,2.78092273,4600.0,4599.9,46.1228594]
[1759756974182,2.78092273,4600.0,4599.9,44.39899]
[1759756976682,3.23152273,4600.0,4599.9,3.59899]
[1759756976883,3.23152273,4600.0,4599.9,3.2078]
[1759756983881,6.11041584,4600.0,4598.9,0.39127]
[1759756984086,0.7628,4599.4,4599.3,3.2078]
[1759756984290,0.9818,4599.4,4599.3,3.2078]
[1759756984884,1.37303,4599.4,4599.3,3.2078]
[1759756985091,0.3122,4599.4,4599.3,3.2078]
[1759756985287,0.5312,4599.4,4599.3,3.2078]
[1759756985682,0.7571,4599.4,4599.3,3.2078]
[1759756986289,0.3122,4599.4,4599.3,3.59904]
[1759756986595,0.5312,4599.4,4599.3,3.59904]
[1759756988088,0.5312,4599.4,4599.3,4.37051221]
[1759756988394,0.7571,4599.4,4599.3,3.97927221]
[1759756989884,1.37304,4599.4,4599.3,3.2078]
[1759756990387,0.9818,4599.4,4599.3,3.2078]
[1759756991188,0.9818,4599.4,4599.3,3.97927221]
[1759756991586,0.9818,4599.4,4599.3,4.37051221]
[1759756992691,0.9818,4599.4,4599.3,3.97927221]
[1759756993396,1.37304,4599.4,4599.3,3.97927221]
[1759756993896,1.37304,4599.4,4599.3,3.2078]
[1759756998994,4.23243842,4599.4,4599.3,3.2078]
[1759756999198,4.23243842,4599.4,4598.8,3.97927221]
[1759756999199,1.13998,4598.9,4598.8,3.97927221]
[1759756999395,1.35798,4598.9,4598.8,3.2078]
[1759757000200,0.5347,4598.9,4598.8,3.59909]
[1759757000397,0.7445,4598.9,4598.8,3.59909]
[1759757001807,1.13578,4598.9,4598.8,3.2078]
[1759757002201,1.35798,4598.9,4598.8,3.2078]
[1759757003604,0.9667,4598.9,4598.8,3.2078]
[1759757003907,1.35798,4598.9,4598.8,3.2078]
[1759757004108,0.9667,4598.9,4598.8,3.2078]
[1759757004599,1.35798,4598.9,4598.8,3.2078]
[1759757004806,0.9667,4598.9,4598.8,3.2078]
[1759757005215,0.9667,4598.9,4598.8,3.59909]
[1759757005506,0.5265,4598.9,4598.8,3.59909]
[1759757005806,0.3167,4598.9,4598.8,3.59909]
[1759757006204,0.3167,4598.9,4598.8,4.37055221]
[1759757006911,0.3167,4598.9,4598.8,3.97927221]
[1759757007206,0.3167,4598.9,4598.8,4.37055221]
[1759757007402,0.30819363,4599.0,4598.9,0.39128]
[1759757007608,0.30819363,4599.0,4598.9,1.55416319]
[1759757007999,0.69946363,4599.0,4598.9,1.16288319]
[1759757008203,0.30819363,4599.0,4598.9,1.16288319]
[1759757008408,0.30819363,4599.0,4598.9,1.55416319]
[1759757009612,0.62489363,4599.0,4598.9,1.55416319]
[1759757011717,0.62489363,4599.0,4598.9,1.16288319]
[1759757011915,1.44816363,4599.0,4598.9,0.83508136]
[1759757012119,1.13998,4598.9,4598.8,3.2078]
[1759757012510,0.7487,4598.9,4598.8,3.2078]
[1759757012707,0.9667,4598.9,4598.8,3.2078]
[1759757012910,0.3167,4598.9,4598.8,3.59909]
[1759757014314,0.3167,4598.9,4598.8,44.39909]
[1759757014611,0.09019363,4599.0,4598.8,50.96620666]
[1759757014814,0.09019363,4599.0,4598.9,0.218]
[1759757015113,0.41139363,4599.0,4598.9,0.218]
[1759757015510,0.41139363,4599.0,4598.9,1.78511666]
[1759757016011,0.09019363,4599.0,4598.9,6.78511666]
[1759757016407,0.41139363,4599.0,4598.9,6.78511666]
[1759757017515,0.3425,4599.5,4598.9,7.76330666]
[1759757017717,0.3425,4599.5,4599.4,3.59904]
[1759757019507,0.6637,4599.5,4599.4,3.59904]
[1759757020018,0.878,4599.5,4599.4,3.59904]
[1759757020316,0.4535,4599.5,4599.4,3.59904]
[1759757023616,0.6637,4599.5,4599.4,3.59904]
[1759757023816,0.4535,4599.5,4599.4,3.59904]
[1759757024915,0.4535,4599.5,4599.4,3.81704]
[1759757027526,0.10016945,4599.5,4599.4,3.81704]
[1759757027719,0.23066945,4599.5,4599.4,3.81704]
[1759757030318,0.65226945,4599.5,4599.4,3.59904]
[1759757030521,1.04349945,4599.5,4599.4,3.2078]
[1759757030823,0.65226945,4599.5,4599.4,3.59904]
[1759757031018,0.44086945,4599.5,4599.4,3.59904]
[1759757031224,0.65226945,4599.5,4599.4,3.2078]
[1759757031419,1.04349945,4599.5,4599.4,3.2078]
[1759757031922,0.65226945,4599.5,4599.4,4.76050075]
[1759757032318,0.65226945,4599.5,4599.4,3.59904]
[1759757033918,1.04349945,4599.5,4599.4,3.2078]
[1759757034126,0.65226945,4599.5,4599.4,3.59904]
[1759757034622,1.04349945,4599.5,4599.4,3.2078]
[1759757034818,0.65226945,4599.5,4599.4,3.2078]
[1759757035026,0.65226945,4599.5,4599.4,3.59904]
[1759757035219,1.04349945,4599.5,4599.4,3.2078]
[1759757037727,3.08451273,4600.0,4599.9,0.1012]
[1759757038032,3.29591273,4600.0,4599.9,4.08406528]
[1759757038323,3.29591273,4600.0,4599.9,3.98286528]
[1759757038526,8.29591273,4600.0,4599.9,3.2078]
[1759757039726,8.62461273,4600.0,4599.9,3.2078]
[1759757040517,0.39123,4599.5,4599.4,0.77506528]
[1759757040729,1.50543,4599.5,4599.4,0.77506528]
[1759757041119,1.50543,4599.5,4599.4,0.98436528]
[1759757041830,1.50543,4599.5,4599.4,0.2093]
[1759757042532,1.50543,4599.5,4599.4,0.98494735]
[1759757042729,1.17673,4599.5,4599.3,0.77564735]
[1759757043023,0.7647,4599.4,4599.3,0.77564735]
[1759757043224,0.7647,4599.4,4598.5,3.32750822]
[1759757043225,1.15599,4598.8,4598.7,4.37039792]
[1759757043636,0.5533,4598.8,4598.7,5.13289792]
[1759757044127,0.5533,4598.8,4598.7,3.9703]
[1759757044324,0.1315,4599.5,4598.7,3.9703]
[1759757044325,2.33642273,4600.0,4599.7,0.336]
[1759757044529,3.16361273,4600.0,4599.9,3.9703]
[1759757045832,3.16361273,4600.0,4599.9,3.5438]
[1759757046326,3.46461273,4600.0,4599.9,3.5438]
[1759757047123,3.46461273,4600.0,4599.9,3.2078]
[1759757047525,0.82721,4599.7,4599.6,0.336]
[1759757047727,0.737,4598.9,4598.8,4.37069354]
[1759757047920,0.955,4598.9,4598.8,3.2078]
[1759757048120,0.955,4598.9,4598.8,3.5438]
[1759757048431,0.737,4598.9,4598.8,3.7531]
[1759757048732,0.955,4598.9,4598.8,3.7531]
[1759757049924,0.654,4598.9,4598.8,3.7531]
[1759757050238,0.654,4598.9,4598.8,3.9703]
[1759757051029,0.436,4598.9,4598.8,3.9703]
[1759757051227,0.654,4598.9,4598.8,3.9703]
[1759757051629,0.436,4598.9,4598.8,3.9703]
[1759757051930,0.654,4598.9,4598.8,3.9703]
[1759757053422,0.97808,4599.5,4598.8,3.9703]
[1759757053629,4.03501,4599.7,4599.6,0.7625]
[1759757053830,4.25301,4599.7,4599.6,0.7625]
[1759757054029,4.55401,4599.7,4599.6,0.336]
[1759757055228,0.61586,4599.1,4599.0,0.8851]
[1759757055428,0.83386,4599.1,4599.0,0.8851]
[1759757055623,1.04526,4599.1,4599.0,0.8851]
[1759757055829,1.34626,4599.1,4599.0,0.8851]
[1759757056132,1.34626,4599.1,4599.0,0.6679]
[1759757056727,0.60926,4599.1,4599.0,0.8851]
[1759757058033,0.83386,4599.1,4599.0,0.8851]
[1759757059633,1.34796,4599.1,4599.0,0.336]
[1759757059833,1.34796,4599.1,4599.0,0.5483]
[1759757060228,0.60926,4599.1,4599.0,0.8968]
[1759757061337,0.83246,4599.1,4599.0,0.8968]
[1759757061536,0.60926,4599.1,4599.0,0.8968]
[1759757062034,0.4361,4599.9,4599.8,0.5453]
[1759757062233,0.6541,4599.9,4599.8,0.7662]
[1759757062436,3.8274114,4599.9,4599.8,0.7662]
[1759757062731,3.6094114,4599.9,4599.8,0.7662]
[1759757062938,1.0453,4599.9,4599.8,0.7662]
[1759757068535,0.8324,4599.9,4599.8,0.7662]
[1759757069337,1.0453,4599.9,4599.8,0.7662]
[1759757074944,0.6092,4599.9,4599.8,0.7662]
[1759757075144,0.8351,4599.9,4599.8,0.7662]
[1759757076752,1.055,4599.9,4599.8,0.7662]
[1759757078753,1.3566,4599.9,4599.8,0.7662]
[1759757079751,1.055,4599.9,4599.8,0.7662]
[1759757083248,1.3566,4599.9,4599.8,0.7662]
[1759757083442,0.39122,4599.6,4599.5,0.90112859]
[1759757083648,0.61715,4599.3,4599.2,0.77352859]
[1759757083848,0.3016,4599.0,4598.9,3.98132859]
[1759757084050,0.9654,4599.0,4598.9,3.7254]
[1759757087154,0.9654,4599.0,4598.9,3.5209]
[1759757088756,0.9654,4599.0,4598.9,3.7261]
[1759757088953,0.6638,4599.0,4598.9,3.9352]
[1759757089359,1.05507,4599.0,4598.9,3.9352]
[1759757089654,1.35677,4599.0,4598.9,3.7261]
[1759757090048,1.05507,4599.0,4598.9,3.9352]
[1759757092153,1.35677,4599.0,4598.9,3.7261]
[1759757092353,4.17697333,4599.0,4598.9,3.2078]
[1759757092561,4.17697333,4599.0,4598.9,3.7335]
[1759757093360,4.17697333,4599.0,4598.3,3.7335]
[1759757093361,0.7362,4598.4,4598.3,3.7335]
[1759757093553,0.9542,4598.4,4598.3,3.9426]
[1759757093750,3.45693664,4598.4,4598.3,3.9426]
[1759757093950,4.14995664,4598.4,4598.3,3.7374]
[1759757094156,1.12755,4598.1,4598.0,0.3205]
[1759757094356,1.34555,4598.1,4598.0,0.3205]
[1759757094561,4.20013677,4598.1,4598.0,0.3205]
[1759757094857,4.20013677,4598.1,4597.9,0.00547]
[1759757095056,0.3017,4598.0,4597.9,0.00547]
[1759757095255,0.3017,4598.0,4597.9,0.53117]
[1759757095256,0.7362,4598.0,4597.9,0.53117]
[1759757095456,3.56643817,4598.0,4597.9,0.53117]
[1759757096559,3.26473817,4598.0,4597.9,0.74027]
[1759757096762,3.48273817,4598.0,4597.9,0.74027]
[1759757097352,3.26473817,4598.0,4597.9,0.74027]
[1759757097557,3.48273817,4598.0,4597.9,0.74027]
[1759757097759,3.78443817,4598.0,4597.9,0.74027]
[1759757099265,3.26473817,4598.0,4597.9,0.74027]
[1759757099466,3.48273817,4598.0,4597.9,0.74027]
[1759757099765,3.78443817,4598.0,4597.9,0.32597]
[1759757099966,3.48273817,4598.0,4597.9,0.74027]
[1759757100261,0.97816,4599.2,4598.6,0.2091]
[1759757100462,0.2178,4598.6,4598.5,0.6536]
[1759757100760,2.87469255,4599.2,4599.0,0.124]
[1759757100962,2.87469255,4599.2,4599.1,0.7348]
[1759757100963,0.4345,4599.2,4599.1,0.7348]
[1759757101166,5.64482273,4600.0,4599.1,0.7348]
[1759757101363,2.55422273,4600.0,4599.9,0.4143]
[1759757101563,2.77222273,4600.0,4599.9,0.7348]
[1759757103667,2.33642273,4600.0,4599.9,0.7348]
[1759757103969,2.55442273,4600.0,4599.9,0.7348]
[1759757104360,2.77222273,4600.0,4599.9,0.7348]
[1759757108663,2.33642273,4600.0,4599.9,0.7348]
[1759757108863,4.06967939,4601.0,4600.5,0.39114]
[1759757109068,0.2178,4600.6,4600.5,0.92944]
[1759757109271,0.4358,4600.6,4600.5,0.5383]
[1759757109468,0.6525,4600.6,4600.5,0.5383]
[1759757109676,0.6525,4600.6,4600.5,0.8588]
[1759757109868,0.65497724,4600.6,4600.5,0.8588]
[1759757113168,0.43697724,4600.6,4600.5,0.8588]
[1759757113369,0.17747724,4600.6,4600.5,0.8588]
[1759757113571,0.39527724,4600.6,4600.5,0.8588]
[1759757115575,0.17747724,4600.6,4600.5,0.8588]
[1759757115975,0.17747724,4600.6,4600.5,1.24995]
[1759757116179,0.22047724,4600.6,4600.5,1.24995]
[1759757118171,0.22047724,4600.6,4600.5,1.24994]
[1759757118977,0.22047724,4600.6,4600.5,0.8588]
[1759757119179,0.43877724,4600.6,4600.5,1.24994]
[1759757119582,0.22047724,4600.6,4600.5,1.24994]
[1759757120078,0.43877724,4600.6,4600.5,1.24994]
[1759757120281,0.43877724,4600.6,4600.5,0.8588]
[1759757120481,0.43877724,4600.6,4600.5,1.24994]
[1759757120876,0.00247724,4600.6,4600.5,1.24994]
[1759757121083,0.22047724,4600.6,4600.5,1.24994]
[1759757121582,0.22047724,4600.6,4600.5,2.99374757]
[1759757121882,0.22047724,4600.6,4600.5,1.24994]
[1759757124181,0.00247724,4600.6,4600.5,1.24994]
[1759757125386,0.00247724,4600.6,4600.5,3.00973783]
[1759757126487,3.59885,4601.6,4601.5,0.8748]
[1759757126682,3.81685,4601.6,4601.5,0.8748]
[1759757126883,3.6441,4601.6,4601.5,0.8748]
[1759757127088,4.03515,4601.6,4601.5,0.8748]
[1759757127278,3.6441,4601.6,4601.5,0.8748]
[1759757127477,3.64642487,4601.6,4601.5,1.26837363]
[1759757127683,4.03747487,4601.6,4601.5,0.87731363]
[1759757128081,4.24247487,4601.6,4601.5,0.87731363]
[1759757128381,3.85142487,4601.6,4601.5,0.87731363]
[1759757128580,4.24247487,4601.6,4601.5,0.87731363]
[1759757129289,4.24247487,4601.6,4601.5,1.26837363]
[1759757129290,3.85142487,4601.6,4601.5,1.26837363]
[1759757129582,4.24247487,4601.6,4601.5,1.26837363]
[1759757129985,4.24247487,4601.6,4601.5,0.87731363]
[1759757131986,4.54687487,4601.6,4601.5,0.87731363]
[1759757132583,4.24247487,4601.6,4601.5,0.87731363]
[1759757133289,4.54687487,4601.6,4601.5,0.87731363]
[1759757133587,4.54687487,4601.6,4601.5,0.54491363]
[1759757134189,4.54687487,4601.6,4601.5,0.33571363]
[1759757135296,4.24247487,4601.6,4601.5,0.89201363]
[1759757136298,4.54637487,4601.6,4601.5,0.89201363]
[1759757137500,4.54637487,4601.6,4601.5,0.33571363]
[1759757138296,4.54637487,4601.6,4601.5,0.54631363]
[1759757138599,4.54637487,4601.6,4601.5,0.67951363]
[1759757139096,4.54637487,4601.6,4601.5,0.89341363]
[1759757139698,4.54637487,4601.6,4601.5,0.00251363]
[1759757140102,4.54637487,4601.6,4601.5,0.33451363]
[1759757141504,4.54637487,4601.6,4601.5,0.54511363]
[1759757141999,3.85142487,4601.6,4601.5,0.89221363]
[1759757142200,1.33857487,4601.6,4601.5,0.89221363]
[1759757142605,1.03467487,4601.6,4601.5,0.89221363]
[1759757143200,1.33857487,4601.6,4601.5,0.89221363]
[1759757144608,1.03467487,4601.6,4601.5,0.89221363]
[1759757147707,1.33857487,4601.6,4601.5,0.89221363]
[1759757150108,1.33857487,4601.6,4601.5,0.33451363]
[1759757150609,1.33857487,4601.6,4601.5,0.00251363]
[1759757150808,4.15481575,4601.6,4601.5,0.00251363]
[1759757151207,4.15481575,4601.6,4601.5,0.53081363]
[1759757152816,4.15481575,4601.6,4601.5,0.00251363]
[1759757154019,4.15481575,4601.6,4601.5,0.01763383]
[1759757154608,4.15481575,4601.6,4601.5,0.32973383]
[1759757154813,3.85091575,4601.6,4601.5,0.89813536]
[1759757155723,0.39337487,4601.6,4601.5,0.89813536]
[1759757156023,0.61137487,4601.6,4601.5,0.89813536]
[1759757156521,0.83387487,4601.6,4601.5,0.89813536]
[1759757159226,0.22032487,4601.6,4601.5,0.89813536]
[1759757159920,0.44282487,4601.6,4601.5,0.89813536]
[1759757161927,0.22032487,4601.6,4601.5,0.89813536]
[1759757162122,0.00232487,4601.6,4601.5,0.89813536]
[1759757162325,0.00232487,4601.6,4601.5,6.67166395]
[1759757162726,0.00232487,4601.6,4601.5,5.89813536]
[1759757163121,0.22482487,4601.6,4601.5,1.67238684]
[1759757163327,0.00232487,4601.6,4601.5,1.67238684]
[1759757163525,0.22482487,4601.6,4601.5,1.67238684]
[1759757163726,0.22482487,4601.6,4601.5,1.67840823]
[1759757163926,0.22032487,4601.6,4601.5,1.67840823]
[1759757164126,0.22032487,4601.6,4601.5,0.90415675]
[1759757164831,0.22032487,4601.6,4601.5,0.91225163]
[1759757165428,0.22032487,4601.6,4601.5,1.68650311]
[1759757166129,0.22032487,4601.6,4601.5,0.91225163]
[1759757167231,0.4694,4602.9,4602.8,0.7499]
[1759757167424,0.7757,4602.9,4602.8,0.7499]
[1759757167629,0.39097,4602.6,4602.5,0.1225]
[1759757167834,0.578562,4602.2,4602.1,0.2162]
[1759757168026,1.107362,4602.2,4602.1,0.2162]
[1759757168222,0.00172258,4602.2,4602.1,0.7499]
[1759757168426,0.22422258,4602.2,4602.1,0.7499]
[1759757169736,0.75542258,4602.2,4602.1,0.5283]
[1759757170426,0.22422258,4602.2,4602.1,0.7499]
[1759757170631,0.00172258,4602.2,4602.1,0.7499]
[1759757172326,0.3063,4602.1,4601.9,0.77438819]
[1759757172639,0.83845,4601.6,4601.5,0.00251363]
[1759757172825,1.36675,4601.6,4601.5,0.00251363]
[1759757173030,4.16025796,4601.6,4601.5,0.00251363]
[1759757173426,0.61361,4600.9,4600.8,3.2078]
[1759757173732,1.14684,4600.6,4600.5,0.2162]
[1759757173933,1.14684,4600.6,4600.5,0.4378]
[1759757174439,1.14684,4600.6,4600.5,0.75171478]
[1759757174738,0.39112,4600.8,4600.7,0.7499]
[1759757175530,0.22,4601.0,4600.8,0.3121]
[1759757175737,0.22,4601.0,4600.9,3.9577]
[1759757176531,0.22,4601.0,4600.9,4.73208819]
[1759757177135,0.39109,4601.2,4601.1,0.7499]
[1759757177438,0.92189,4601.2,4601.1,0.7499]
[1759757177942,1.14679,4601.2,4601.1,0.7499]
[1759757178837,0.3911,4601.0,4600.9,44.0078]
[1759757179043,1.2727,4601.0,4600.9,3.7695]
[1759757179342,1.1381,4601.0,4600.9,3.9896]
[1759757179536,0.8254,4601.0,4600.9,3.9896]
[1759757179736,0.3911,4601.0,4600.9,3.9896]
[1759757179938,0.6163,4601.0,4600.9,3.9896]
[1759757180136,0.2252,4601.0,4600.9,3.9896]
[1759757180329,0.2252,4600.6,4600.5,0.34031478]
[1759757180529,0.747,4600.6,4600.5,0.22501478]
[1759757180735,0.39113,4600.6,4600.5,0.91501478]
[1759757181039,1.14903,4600.6,4600.5,0.91501478]
[1759757181235,1.14903,4600.6,4600.5,0.78361478]
[1759757181236,1.35813,4600.6,4600.5,0.78361478]
[1759757182839,1.35813,4600.6,4600.5,0.00181478]
[1759757183340,1.35813,4600.6,4600.5,0.78361478]
[1759757184639,1.04543,4600.6,4600.5,0.91501478]
[1759757184940,0.83633,4600.6,4600.5,0.91501478]
[1759757186336,1.35813,4600.6,4600.5,0.00181478]
[1759757186743,4.16959048,4600.6,4600.5,0.00181478]
[1759757187641,1.27278,4600.0,4599.9,3.2078]
[1759757187835,0.221,4600.0,4599.9,3.9896]
[1759757188234,0.2252,4600.4,4600.3,0.7818]
[1759757188446,0.4462,4600.4,4600.3,0.7818]
[1759757188644,0.4462,4600.4,4600.3,0.78449192]
[1759757188645,0.2252,4600.4,4600.3,0.78449192]
[1759757188843,0.2252,4600.4,4600.3,41.58449192]
[1759757190744,0.747,4600.4,4600.3,0.78449192]
[1759757193142,0.2252,4600.8,4600.7,0.4433]
[1759757193344,0.4462,4600.8,4600.7,0.4433]
[1759757193536,0.968,4600.8,4600.7,0.7818]
[1759757193737,1.35911,4600.8,4600.7,0.7818]
[1759757194634,0.221,4600.8,4600.7,0.7818]
[1759757194837,0.39103,4601.8,4601.7,0.4433]
[1759757195037,0.7589,4601.8,4601.7,0.7818]
[1759757195232,0.221,4601.8,4601.7,0.7818]
[1759757196647,0.221,4601.8,4601.7,41.5818]
[1759757197443,0.3127,4601.3,4600.9,1.11288819]
[1759757197645,0.1346,4601.5,4601.0,0.7818]
[1759757197646,1.13809,4601.1,4601.0,0.7818]
[1759757197944,0.61209,4601.2,4601.0,0.9132]
[1759757198145,0.83729,4601.2,4601.1,0.7818]
[1759757198647,0.221,4601.2,4601.1,3.9896]
[1759757199942,0.221,4601.4,4601.1,3.6511]
[1759757200141,0.61628,4601.2,4601.1,3.9896]
[1759757200941,1.13808,4601.2,4601.1,3.9896]
[1759757201543,1.13808,4601.2,4601.1,3.2078]
[1759757202251,1.13808,4601.2,4601.1,3.431]
[1759757202645,1.13808,4601.2,4601.1,3.7687]
[1759757202946,0.61208,4601.2,4601.1,3.9877]
[1759757203446,0.83168,4601.2,4601.1,3.9877]
[1759757203948,1.37128,4601.2,4601.1,3.9877]
[1759757207044,0.83231,4600.8,4600.7,0.7767]
[1759757207354,1.15031,4600.8,4600.7,0.7767]
[1759757207553,0.83231,4600.8,4600.7,0.7767]
[1759757207852,0.39111,4600.9,4600.8,0.3198]
[1759757208051,0.39111,4600.9,4600.8,0.7536]
[1759757208244,0.82149,4601.1,4601.0,0.5604]
[1759757208447,0.82149,4601.1,4601.0,0.8802]
[1759757208646,0.3199,4602.3,4601.5,0.4464]
[1759757208852,0.41802258,4602.2,4602.1,0.4338]
[1759757209047,0.60045,4601.6,4601.5,3.7682]
[1759757209253,1.34825,4601.6,4601.5,3.7682]
[1759757209453,1.02835,4601.6,4601.5,3.7682]
[1759757209648,0.61205,4601.6,4601.5,4.088]
[1759757212756,0.221,4601.6,4601.5,4.088]
[1759757212951,0.39103,4601.8,4601.6,0.2161]
[1759757213258,0.39103,4601.8,4601.7,4.35243]
[1759757213752,0.39103,4601.8,4601.7,3.9614]
[1759757214561,0.60043,4601.8,4601.7,3.9614]
[1759757215255,1.12723,4601.8,4601.7,3.9614]
[1759757216354,1.12723,4601.8,4601.7,3.7437]
[1759757216661,1.12723,4601.8,4601.7,3.2078]
[1759757216862,1.12728,4601.2,4601.1,3.9614]
[1759757218359,0.221,4601.3,4601.2,0.5359]
[1759757218658,0.221,4601.3,4601.2,0.7536]
[1759757220759,1.95483,4602.7,4601.1,3.59889]
[1759757220760,0.00172258,4602.2,4602.0,0.5604]
[1759757221056,1.12892258,4602.2,4602.1,0.7536]
[1759757221261,1.34992258,4602.2,4602.1,0.7536]
[1759757225668,1.03002258,4602.2,4602.1,0.7536]
[1759757226968,0.00172258,4602.2,4602.1,4.35241]
[1759757227172,0.22272258,4602.2,4602.1,4.35241]
[1759757227368,0.61372258,4602.2,4602.1,4.35241]
[1759757227769,0.22272258,4602.2,4602.1,4.35241]
[1759757228176,0.39272258,4602.2,4602.1,4.35241]
[1759757228376,0.61372258,4602.2,4602.1,4.35241]
[1759757228676,0.00172258,4602.2,4602.1,4.35241]
[1759757228875,0.39272258,4602.2,4602.1,3.9614]
[1759757229378,0.39272258,4602.2,4602.1,4.35241]
[1759757230279,0.00172258,4602.2,4602.1,4.35241]
[1759757230475,0.60212258,4602.2,4602.1,3.9614]
[1759757230980,0.39272258,4602.2,4602.1,4.35241]